Cogmind - Beta 16.1 @@@ ROGUE MODE // 2026.05.03 @ 10:32:55 Player: supa Result: Destroyed by D-53 Grenadier with Mini Grenade Launcher Performance ------------- Evolutions (0) 0 Regions Visited (0) 0 Robots Destroyed (8) 40 Value Destroyed (56) 56 Prototype IDs (0) 0 Alien Tech Used (0) 0 Bonus (0) 0 TOTAL SCORE: 96 Bonus ------- None Cogmind --------- Core Integrity 0/250 Matter 300/300 Energy 98/100 System Corruption 0% Temperature Cool (0) Movement Core (50) Location -11/Scrapyard Parts ------- > --- POWER (1) -------- (None) > --- PROPULSION (2) --- (None) > --- UTILITY (2) ------ Improved Terrain Scanner > --- WEAPON (2) ------- (None) > --- INVENTORY (5) ---- Light Ion Engine Light Assault Rifle Peak State ------------ > --- POWER ------------ Ion Engine > --- PROPULSION ------- Aluminum Leg Aluminum Leg > --- UTILITY ---------- Improved Terrain Scanner Seismic Detector > --- WEAPON ----------- Assault Rifle Light Assault Rifle > --- INVENTORY -------- Light Ion Engine [Rating: 9] Favorites ----------- Power Ion Engine Engine Ion Engine Propulsion Aluminum Leg Leg Aluminum Leg Utility Improved Terrain Scanner Device Improved Terrain Scanner Weapon Assault Rifle Ballistic Gun Assault Rifle Special Weapon Mining Laser Build | -11 ------- Run | Yrd Slots Evolved . | . Power . | . Propulsion . | . Utility . | . Weapon . | . Parts Attached 9 | 9 Power 2 | 2 Engine 2 | 2 Core . | . Reactor . | . Propulsion 2 | 2 Treads . | . Leg 2 | 2 Wheel . | . Hover . | . Flight . | . Utility 2 | 2 Device 2 | 2 Storage . | . Processor . | . Hackware . | . Protection . | . Artifact . | . Weapon 3 | 3 Energy Gun . | . Energy Cannon . | . Ballistic Gun 2 | 2 Ballistic Cannon . | . Launcher . | . Special Weapon 1 | 1 Impact Weapon . | . Slashing Weapon . | . Piercing Weapon . | . Special Melee Weapon . | . Unidentified Prototypes . | . Parts Lost 6 | 6 Power 1 | 1 Propulsion 2 | 2 Utility 1 | 1 Weapon 2 | 2 Highest Loss Streak 6 | 6 To Critical Strikes . | . Average Backups 1 | 1 Power . | . Propulsion . | . Utility . | . Weapon . | . Tool/Special . | . Unused Backups . | . Power . | . Propulsion . | . Utility . | . Weapon . | . Tool/Special . | . Average Slot Usage (%) . | . Peak Build Rating 9 | 9 Average Rating 6 | 6 On Entrance . | . Avg Prop Armor Cover (%) . | . Naked Turns . | . Heaviest Build 10 | 10 Greatest Support 20 | 20 Greatest Overweight (x) . | . Average Overweight (x) . | . Largest Inventory Capacity 5 | 5 Average Capacity 5 | 5 Most Carried 3 | 3 Average Carried 1 | 1 Final Capacity 5 | 5 Final Carried 2 | 2 Class Distribution -------------------- None Dominant Class ---------------- None Resources | -11 ----------- Run | Yrd Matter Collected 372 | 372 Remotely . | . Salvage Created 127 | 127 Parts 19 | 19 Haulers Intercepted . | . Recyclers Shooed . | . Parts Field Recycled . | . Retrieved Matter . | . Parts Self-Destructed . | . Prevented . | . Parts Restored . | . Kills | -11 ------- Run | Yrd Combat Hostiles Destroyed . | . Classes Destroyed 1 | 1 Tunneler 8 | 8 Best Kill Streak 2 | 2 Combat Bots Only . | . Max Kills in Single Turn 1 | 1 Gunslinging . | . Exploded . | . Melee . | . Uniques/NPCs Destroyed . | . Combat | -11 -------- Run | Yrd Hostile Shots Fired 17 | 17 Missed 3 | 3 Hits 14 | 14 Projectile 14 | 14 AOE 16 | 16 Damage Taken 629 | 629 Core 250 | 250 Absorbed by Shields . | . Core Remaining (%) . | . Volleys Fired 161 | 161 Largest 2 | 2 Hottest 100 | 100 Shots Fired 186 | 186 Gun 50 | 50 Cannon . | . Launcher . | . Special 136 | 136 Kinetic 50 | 50 Thermal 136 | 136 Explosive . | . Electromagnetic . | . Robot Hit Streak 5 | 5 Robot Miss Streak 4 | 4 Penetration Max . | . Secondary Targets . | . Shots Hit Robots 26 | 26 Core Hits 11 | 11 Critical Kills . | . Critical Parts Destroyed . | . Critical Strikes . | . Melee Attacks . | . Impact . | . Slashing . | . Piercing . | . Sneak Attacks . | . Combat Hostiles . | . Follow-up Attacks . | . Damage Inflicted 263 | 263 Guns 263 | 263 Cannons . | . Explosions . | . Melee . | . Ramming . | . Kinetic 263 | 263 Thermal . | . Explosive . | . Electromagnetic . | . Impact . | . Slashing . | . Piercing . | . Highest Corruption . | . Average Corruption . | . Corruption Purged . | . Corruption Blocked . | . Overload Shots . | . Overflow Damage . | . Projectiles . | . Explosions . | . Melee . | . Knockbacks . | . Impact . | . Kinetic . | . Secondary . | . Self-Inflicted Damage . | . Shots . | . Rammed . | . Targets Rammed . | . Kicked . | . Crushed . | . Highest Temperature 206 | 206 Average Temperature 67 | 67 Received Heat Transfer . | . Siege Activations . | . Martial Activations . | . Shielding Activations . | . Robots Disrupted . | . Combat Hostiles . | . Robots Corrupted . | . Combat Hostiles . | . Parts Fried . | . Impact Corruptions . | . Robots Melted . | . Combat Hostiles . | . Parts Melted . | . Heat Transferred . | . Parts Sabotaged . | . Parts Stolen . | . Parts Stripped . | . Power Chain Reactions . | . Alert | -11 ------- Run | Yrd Maximum Alert Level . | . Low Security (%) 100 | 100 Level 1 . | . Level 2 . | . Level 3 . | . Level 4 . | . Level 5 . | . High Security . | . Max Security . | . Peak Influence 35 | 35 Initial . | . Average 8 | 8 Influence Increases 70 | 70 Destroy 0b10 Robot/NC 40 | 40 Lose Combat Pursuer 30 | 30 Influence Decreases 40 | 40 Time Decay 5 | 5 Lost Part 35 | 35 Squads Dispatched . | . Investigation . | . Extermination . | . Reinforcement . | . Assault . | . Garrison . | . Intercept . | . Searches Triggered . | . Construction Impeded . | . Haulers Reinforced . | . Active Scanning Responses . | . Cargo Convoy Interrupts . | . Stealth | -11 --------- Run | Yrd Distress Signals . | . Communications Jammed . | . Distress Signals . | . Times Spotted 4 | 4 Peak Tracking Total 2 | 2 Tactical Retreats 2 | 2 Traps | -11 ------- Run | Yrd Traps Triggered . | . Indirectly . | . Trap Hack Attempts . | . Triggered . | . Disarmed . | . Reprogrammed . | . Reused . | . Traps Extracted . | . Installed . | . Triggered . | . Machines | -11 ---------- Run | Yrd Machines Disabled . | . Max in Single Turn . | . Machines Repaired . | . Machines Dismantled . | . Machines Sabotaged . | . Overloaded Fab Kills . | . Hacking | -11 --------- Run | Yrd Machines Accessed . | . Terminals . | . Fabricators . | . Repair Stations . | . Recycling Units . | . Scanalyzers . | . Garrison Access . | . Total Hacks . | . Successful . | . Failed . | . Catastrophic . | . Database Lockouts . | . Manual . | . Terminals . | . Fabricators . | . Repair Stations . | . Recycling Units . | . Scanalyzers . | . Garrison Access . | . Terminal Hacks . | . Fabricator Hacks . | . Repair Station Hacks . | . Recycling Unit Hacks . | . Scanalyzer . | . Garrison Access Hacks . | . Unauthorized Hacks . | . Terminals . | . Fabricators . | . Repair Stations . | . Recycling Units . | . Scanalyzers . | . Garrison Access . | . Data Cores Recovered . | . Used . | . Hacking Detections . | . Full Trace Events . | . Feedback Events . | . Feedback Blocked . | . Robot Schematics Acquired . | . Robots Built . | . Authchips . | . Time . | . Total Robot Build Rating . | . Part Schematics Acquired . | . Parts Built . | . Authchips . | . Time . | . Total Part Build Rating . | . Part Studies Acquired . | . Parts Repaired . | . Time . | . Parts Recycled . | . Recycled Matter . | . Retrieved Matter . | . Retrieved Components . | . Parts Scanalyzed . | . Part Schematics Acquired . | . Parts Damaged . | . Bothacking | -11 ------------ Run | Yrd Used RIF Installer . | . Robots Hacked . | . Non-combat . | . Combat . | . Robot Hacks Applied . | . Relay Couplers Released . | . Fabnet Peak Effective % . | . Robots Rewired . | . Allies Hacked . | . Hacks Repelled . | . Allies | -11 -------- Run | Yrd Total Allies . | . Largest Group . | . Highest-Rated Group . | . Highest-Rated Ally . | . Total Orders . | . Ally Attacks . | . Total Damage . | . Kills . | . Allies Corrupted . | . Allies Melted . | . Intel | -11 ------- Run | Yrd Active Infowar (turns) 6092 | 6092 Terrain 6092 | 6092 Seismic 2464 | 2464 Robot Analysis Total . | . Derelict Logs Recovered . | . Drone Launches . | . Drone Recoveries . | . Exploration | -11 ------------- Run | Yrd Turns Passed 9897 | 9897 Spaces Moved 2760 | 2760 Core 180 | 180 Treads . | . Legs 2580 | 2580 Wheels . | . Hover . | . Flight . | . Fastest Speed 50 | 50 Average Speed 115 | 115 Slowest Speed 120 | 120 Overloaded Moves . | . Propulsion Burnouts . | . Robots Hopped . | . Potential Cave-ins . | . Cave-ins Triggered . | . Exploration Rate (%) 89 | 89 Regions Visited . Branch Regions . Pre-discovered Areas . | . Known Exits Taken . | . Unknown Exits Taken . | . Scrap Searched . | . Spaces Dug 56 | 56 Terrain Destroyed 93 | 93 Melee . | . Projectile 93 | 93 AOE . | . Terrain Rammed . | . Walls Destroyed . | . Machines Disabled . | . Actions | -11 --------- Run | Yrd Total 9017 | 9017 Wait 6078 | 6078 Move 2760 | 2760 Hop . | . Pick Up 9 | 9 Fast Attach . | . Attach 7 | 7 Detach . | . Swap 2 | 2 Drop . | . Fire 161 | 161 Melee . | . Ram . | . Kick . | . Crush . | . Escape Stasis . | . Rewire . | . Trap . | . Miscellaneous . | . Route ------- -11/Scrapyard (discovered 1 exit: [*Mat]) History --------- Turn | Location | Event 5 | -11/Scrapyard | Discovered new exit (range 15) 9779 | -11/Scrapyard | Assembled infested the area 9806 | -11/Scrapyard | Core integrity fell below 50% 9808 | -11/Scrapyard | Core integrity fell below 20% 9860 | -11/Scrapyard | Lost 6 parts (1p2n1u2w) 9898 | -11/Scrapyard | Destroyed by D-53 Grenadier with Mini Grenade Launcher Last Messages --------------- 07669_ K-01 Serf collects debris. 08001_ T-07 Excavator destroyed. 08014_ Acquired 12 matter. 08017_ Acquired Mining Laser. 09516_ Acquired 5 matter. 09779_ ALERT: Infestation in the scrapyard, dispatching Demolisher response squad. 09779_ C-45 Heavy ARC bursts open, deploying its payload. 09779_ D-53 Grenadier unfolds itself. 09779_ R-06 Scavenger destroyed. 09779_ K-01 Serf collects debris. 09782_ Mining Laser destroyed. 09782_ K-01 Serf destroyed. 09785_ The unstable cave ceiling collapses. 09786_ Seismic Detector destroyed. 09786_ Ion Engine destroyed. 09787_ The unstable cave ceiling collapses. 09805_ Aluminum Leg destroyed. 09829_ Assault Rifle destroyed. Map ----- +----------------------------------------------------+ | # ?# !# #???##?#??## ### # | | # ?# # ##?##?????## ### | | # # #??#???##??# #?# # | | # # # #??#????#??# #?# ### | | # #???????#??# ### ##? | | # # # #?##??#??#?# ## ## | | # # # #?#??????#?# #? | | ########### ##########?##?##????########### ##? | | ######## #####?#??####??##??#?###???######? | | # # ########?????#??##???#???????# | | = # ## #?###??#?#?????#?????#? | | [ # ! ##????????#???#??#????# | | = #?#??##????????##??#?#? | | ! # ##?????#?????#????????? | | = # ## %< ######## #########????????????#?? | | # #d # ###??#???#??####? | | # ## #d # #?#???#????????## | | ## ### #??#?##???#?#???? | | # # ##### # # #?####?###?#?##?? | | #### ####?### # # ##?#??#???#????#? | | # ####?# # # #???##??###??#??? | | ############# ################?#????#? | | # # # #?#?##??#? | | # # # ##???????? | | # = #??#???#?? | | # # # #!@# #????###?? | | # ##### # # # #?#####?## | | # #???# ########## # #### #### | | # ##??# ########## ####### #######?# ### | | # ##### * = ##???## ###?#?#### ### | | # ##??# #??#?## #??##?### | | ##### ################## #???### ####????# | | #?### ## ##?#??### #?#?# ######## | | #?#?# ## #?#?????# ##?## # | | #???# ## #????#??# ##??# | | ##### ## ##???#??# #?#?# ### #### | | # ######### ###?## ## ?# | | # # #?#### ## ## | | ######## #??### ## ## ###### | | # # # # #??### ## ## ##??#? | | # # ######### ###?## ## ## #?#?#? | | # ##???#### ##??## ######### ##???? | | # # ##?#???# ##### ####### #?##? | | # #########???#?## #???# | | ##??#?#?###?#?## #?##? | | ##### ###?#????##??#?## ### ###### ### #??## | | ##??# #??####???#????####### ## #######??? | | #?# #?###??##?#???????# ## ##??#?##?? | | #########??????#??#??#???### ## ##??##?##? | | #????#??##???#??#?#??#### ## ##?#?#???? | +----------------------------------------------------+ Best States ------------- Heat Dissipation 25 Energy Generation 10 Energy Capacity 250 Matter Stores 300 Matter Capacity 300 Sight Range 16 Terrain Scan Range 16 Terrain Scan Density 10 Evasion (%) 55 Item Schematics ----------------- None Robot Schematics ------------------ None Fabricated ------------ Nothing Repaired ---------- Nothing Studied --------- None Alien Tech Used ----------------- None Achievements -------------- None Challenges ------------ None Game ------ Seed SmartSapperScrap Manual? 0 Play Time 00:41:50 Cumulative 60.2 hours Start 2026.05.03 @ 10:06:35 End 2026.05.03 @ 10:32:55 Sessions 0 Manual Loads 0 Difficulty Rogue Special Mode None Game No. 12 Rogue 10 Adventurer 1 Explorer 1 Win Type - Total 3 Types 1/0/2/0/0/0/0/0/0/0 Lore% 17 Gallery% 27 Achievement% 20 Wizard Run 0 Options --------- Layout 1 ASCII 0 Keyboard 0 Movement Mouse Keybinds 0 Fullscreen 2 Font 32/SmallcapsGlow Map View 50x35 Zoom Use 0% Tactical HUD 1 Map Filters NONE Filters NONE Steam 1 RUN: 819dca13-d7d9-4f59-8d76-38febe033d1e